[Event "GrandPrix_30.05"]
[Site "Chess.com"]
[Date "2020.05.30"]
[Round "4"]
[White "Bacyanide"]
[Black "ValeriyGrinev"]
[Result "1-0"]
[WhiteElo "2446"]
[BlackElo "2141"]
[TimeControl "600+2"]
[EndTime "9:56:03 PDT"]
[Termination "Bacyanide won by resignation"]

1. d4 {[%clk 0:10:01.9]} 1... Nf6 {[%clk 0:10:00.4]} 2. Nf3 {[%clk 0:10:02.2]}
2... g6 {[%clk 0:10:01.4]} 3. c4 {[%clk 0:10:02.6]} 3... Bg7 {[%clk 0:10:02.7]}
4. Nc3 {[%clk 0:10:03.7]} 4... d5 {[%clk 0:10:03.8]} 5. cxd5 {[%clk 0:09:58.1]}
5... Nxd5 {[%clk 0:10:04.1]} 6. e4 {[%clk 0:09:58.6]} 6... Nxc3 {[%clk
0:10:05.2]} 7. bxc3 {[%clk 0:09:59.8]} 7... c5 {[%clk 0:10:07.1]} 8. Be3 {[%clk
0:09:55.6]} 8... Qa5 {[%clk 0:10:06.3]} 9. Bd2 {[%clk 0:09:19]} 9... O-O {[%clk
0:09:48.6]} 10. d5 {[%clk 0:09:07.7]} 10... Bxc3 {[%clk 0:09:46.7]} 11. Rc1
{[%clk 0:08:59.9]} 11... Bxd2+ {[%clk 0:09:42.8]} 12. Nxd2 {[%clk 0:09:01]}
12... b6 {[%clk 0:08:32.1]} 13. h4 {[%clk 0:08:58.8]} 13... Nd7 {[%clk
0:06:23.7]} 14. h5 {[%clk 0:08:23.3]} 14... Nf6 {[%clk 0:06:19.6]} 15. hxg6
{[%clk 0:07:34.6]} 15... fxg6 {[%clk 0:06:21.5]} 16. Bd3 {[%clk 0:07:24.2]}
16... Ba6 {[%clk 0:06:18.9]} 17. Qc2 {[%clk 0:06:05.9]} 17... Ng4 {[%clk
0:04:27.8]} 18. O-O {[%clk 0:05:54.7]} 18... Ne5 {[%clk 0:04:28.7]} 19. Bxa6
{[%clk 0:05:50.1]} 19... Qxa6 {[%clk 0:04:30.6]} 20. Rce1 {[%clk 0:04:28.4]}
20... Qd3 {[%clk 0:04:26]} 21. Qb2 {[%clk 0:04:13.7]} 21... Qd4 {[%clk
0:03:57.6]} 22. Qxd4 {[%clk 0:04:08.5]} 22... cxd4 {[%clk 0:03:59.5]} 23. Rd1
{[%clk 0:04:08.1]} 23... g5 {[%clk 0:03:44.2]} 24. Nb3 {[%clk 0:04:04.2]} 24...
d3 {[%clk 0:03:44.5]} 25. Nc1 {[%clk 0:03:53.1]} 25... Rac8 {[%clk 0:03:19.6]}
26. Nxd3 {[%clk 0:03:53.1]} 26... Nxd3 {[%clk 0:03:21.5]} 27. Rxd3 {[%clk
0:03:54.6]} 27... Rc2 {[%clk 0:03:23.2]} 28. a3 {[%clk 0:02:49.8]} 28... Re2
{[%clk 0:02:22.6]} 29. Rg3 {[%clk 0:02:12.7]} 29... h6 {[%clk 0:02:15.1]} 30. f4
{[%clk 0:02:01.3]} 30... Rxe4 {[%clk 0:02:13.7]} 31. fxg5 {[%clk 0:02:02.2]}
31... Rxf1+ {[%clk 0:02:08.1]} 32. Kxf1 {[%clk 0:02:04.1]} 32... h5 {[%clk
0:02:03.2]} 33. Rh3 {[%clk 0:01:57.1]} 33... Rd4 {[%clk 0:01:49.6]} 34. Rxh5
{[%clk 0:01:48.3]} 34... Rxd5 {[%clk 0:01:50.8]} 35. Rh3 {[%clk 0:01:48.8]}
35... Rxg5 {[%clk 0:01:48.9]} 36. Rd3 {[%clk 0:01:49.4]} 36... Ra5 {[%clk
0:01:49.6]} 37. Kf2 {[%clk 0:01:49.3]} 37... Ra4 {[%clk 0:01:50.1]} 38. Kf3
{[%clk 0:01:42.5]} 38... Kf7 {[%clk 0:01:51.3]} 39. g4 {[%clk 0:01:40.8]} 39...
Kf6 {[%clk 0:01:52.6]} 40. Kg3 {[%clk 0:01:41]} 40... b5 {[%clk 0:01:52.8]} 41.
Rf3+ {[%clk 0:01:37.1]} 41... Kg6 {[%clk 0:01:43.6]} 42. Kh4 {[%clk 0:01:28.1]}
42... a6 {[%clk 0:00:51.6]} 43. Re3 {[%clk 0:01:26.4]} 43... Kf6 {[%clk
0:00:52.6]} 44. Rf3+ {[%clk 0:01:27.3]} 44... Kg6 {[%clk 0:00:54.2]} 45. Re3
{[%clk 0:01:28.3]} 45... e5 {[%clk 0:00:48.6]} 46. Rxe5 {[%clk 0:01:22.3]} 46...
Rxa3 {[%clk 0:00:50.1]} 47. Re6+ {[%clk 0:01:23]} 47... Kf7 {[%clk 0:00:51.8]}
48. Rb6 {[%clk 0:01:24.3]} 48... Ra1 {[%clk 0:00:38.8]} 49. Kh5 {[%clk
0:01:19.2]} 49... Ke7 {[%clk 0:00:39.9]} 50. g5 {[%clk 0:01:19.3]} 50... Kd7
{[%clk 0:00:37.3]} 51. g6 {[%clk 0:01:11.5]} 51... Kc7 {[%clk 0:00:38]} 52. Rf6
{[%clk 0:01:11.5]} 52... Rh1+ {[%clk 0:00:27]} 53. Kg5 {[%clk 0:01:11.1]} 53...
Rg1+ {[%clk 0:00:28.1]} 54. Kh6 {[%clk 0:00:57.8]} 54... Rh1+ {[%clk 0:00:29.6]}
55. Kg7 {[%clk 0:00:48.9]} 55... a5 {[%clk 0:00:29.9]} 56. Kf7 {[%clk
0:00:50.1]} 56... Rg1 {[%clk 0:00:17.7]} 57. g7 {[%clk 0:00:45.4]} 57... Rxg7+
{[%clk 0:00:19.6]} 58. Kxg7 {[%clk 0:00:47.3]} 58... a4 {[%clk 0:00:21.3]} 59.
Kg6 {[%clk 0:00:30.4]} 59... a3 {[%clk 0:00:22.3]} 60. Ra6 {[%clk 0:00:20]}
60... Kb7 {[%clk 0:00:21.1]} 61. Rxa3 {[%clk 0:00:20.3]} 61... Kc6 {[%clk
0:00:22.7]} 62. Kf5 {[%clk 0:00:21.6]} 62... Kc5 {[%clk 0:00:24]} 63. Ke4 {[%clk
0:00:22.7]} 63... Kc4 {[%clk 0:00:23.9]} 64. Ra8 {[%clk 0:00:23.3]} 64... b4
{[%clk 0:00:22.3]} 65. Rc8+ {[%clk 0:00:24.1]} 65... Kb3 {[%clk 0:00:23.9]} 66.
Kd3 {[%clk 0:00:25.7]} 66... Kb2 {[%clk 0:00:24.5]} 67. Rb8 {[%clk 0:00:25.2]}
67... Kb3 {[%clk 0:00:26]} 68. Kd2 {[%clk 0:00:25.6]} 68... Ka3 {[%clk
0:00:26.3]} 69. Kc2 {[%clk 0:00:26.9]} 1-0

[Event "GrandPrix_30.05"]
[Site "Chess.com"]
[Date "2020.05.30"]
[Round "4"]
[White "Natalya_Buksa"]
[Black "Margency"]
[Result "0-1"]
[WhiteElo "2062"]
[BlackElo "2196"]
[TimeControl "600+2"]
[EndTime "9:56:08 PDT"]
[Termination "Margency won by resignation"]

1. d4 {[%clk 0:09:58.8]} 1... d5 {[%clk 0:10:00.6]} 2. Nc3 {[%clk 0:09:58]} 2...
Nf6 {[%clk 0:09:53]} 3. Bf4 {[%clk 0:09:51.3]} 3... c5 {[%clk 0:09:50.5]} 4. e3
{[%clk 0:09:52.1]} 4... cxd4 {[%clk 0:09:44.1]} 5. exd4 {[%clk 0:09:52.9]} 5...
a6 {[%clk 0:09:44.2]} 6. Nf3 {[%clk 0:09:54.1]} 6... Nc6 {[%clk 0:09:40.9]} 7.
Ne5 {[%clk 0:09:53.4]} 7... Bd7 {[%clk 0:09:25.1]} 8. Be2 {[%clk 0:09:53.4]}
8... e6 {[%clk 0:09:25.6]} 9. O-O {[%clk 0:09:53.2]} 9... Be7 {[%clk 0:09:26.4]}
10. Nxd7 {[%clk 0:09:39.1]} 10... Qxd7 {[%clk 0:09:27]} 11. Qd2 {[%clk
0:09:39.3]} 11... O-O {[%clk 0:09:27.4]} 12. a3 {[%clk 0:09:34.3]} 12... Rfc8
{[%clk 0:09:24.8]} 13. Rac1 {[%clk 0:08:36.5]} 13... b5 {[%clk 0:09:23]} 14. Nd1
{[%clk 0:08:29.8]} 14... Ne4 {[%clk 0:09:20.7]} 15. Qe3 {[%clk 0:08:30.6]} 15...
Na5 {[%clk 0:09:00.9]} 16. Bd3 {[%clk 0:07:53.6]} 16... Nc4 {[%clk 0:08:40.9]}
17. Qh3 {[%clk 0:07:54.2]} 17... g6 {[%clk 0:08:27.4]} 18. f3 {[%clk 0:07:12.2]}
18... Ned6 {[%clk 0:08:22]} 19. c3 {[%clk 0:07:01.1]} 19... a5 {[%clk
0:08:16.1]} 20. Rc2 {[%clk 0:06:56.4]} 20... Bf6 {[%clk 0:08:15.1]} 21. Nf2
{[%clk 0:06:56.6]} 21... b4 {[%clk 0:08:12.6]} 22. axb4 {[%clk 0:06:57.2]} 22...
axb4 {[%clk 0:08:13.5]} 23. Ng4 {[%clk 0:06:58.5]} 23... Bg7 {[%clk 0:08:13]}
24. Qh4 {[%clk 0:06:22.2]} 24... Ne8 {[%clk 0:07:41.6]} 25. Bxc4 {[%clk
0:05:27.9]} 25... dxc4 {[%clk 0:07:31.5]} 26. Be5 {[%clk 0:05:28.8]} 26... h5
{[%clk 0:07:24.5]} 27. Bxg7 {[%clk 0:05:05.4]} 27... Kxg7 {[%clk 0:07:22.7]} 28.
Ne5 {[%clk 0:05:06.4]} 28... Qd5 {[%clk 0:07:09.5]} 29. Qe7 {[%clk 0:04:26.5]}
29... Nd6 {[%clk 0:06:59.3]} 30. Re1 {[%clk 0:03:57.9]} 30... Re8 {[%clk
0:06:25.9]} 31. Qc7 {[%clk 0:03:42.2]} 31... Ra2 {[%clk 0:05:29.4]} 32. Ree2
{[%clk 0:02:25.3]} 32... Rea8 {[%clk 0:05:02.7]} 33. Qe7 {[%clk 0:01:49.7]}
33... R2a7 {[%clk 0:04:08.3]} 34. Qg5 {[%clk 0:01:49.3]} 34... Ra1+ {[%clk
0:04:04]} 35. Kf2 {[%clk 0:01:49.2]} 35... Nf5 {[%clk 0:03:48.8]} 36. g3 {[%clk
0:01:15.7]} 36... Rh1 {[%clk 0:03:40.8]} 37. Kg2 {[%clk 0:01:12.7]} 37... Raa1
{[%clk 0:03:41.1]} 38. Kh3 {[%clk 0:00:59.1]} 38... Rag1 {[%clk 0:03:29.6]} 39.
Rg2 {[%clk 0:00:59.2]} 39... Re1 {[%clk 0:02:51.3]} 40. Rge2 {[%clk 0:00:55.3]}
40... Rb1 {[%clk 0:02:30.6]} 41. Rg2 {[%clk 0:00:34.5]} 41... bxc3 {[%clk
0:01:51.2]} 42. bxc3 {[%clk 0:00:34.7]} 42... Rb8 {[%clk 0:01:52.5]} 43. Ra2
{[%clk 0:00:33.9]} 43... Rhb1 {[%clk 0:01:04.8]} 44. Ra7 {[%clk 0:00:34.2]}
44... R1b7 {[%clk 0:01:05.5]} 45. Rga2 {[%clk 0:00:35]} 45... Rxa7 {[%clk
0:00:57.9]} 46. Rxa7 {[%clk 0:00:35.7]} 46... Rb7 {[%clk 0:00:59.4]} 47. Ra8
{[%clk 0:00:31.7]} 47... Rc7 {[%clk 0:00:28.5]} 48. Re8 {[%clk 0:00:13.4]} 48...
Qd6 {[%clk 0:00:19]} 49. Rd8 {[%clk 0:00:12.3]} 49... Qa3 {[%clk 0:00:18.4]} 50.
Qd2 {[%clk 0:00:11.8]} 50... Qa1 {[%clk 0:00:19]} 51. Nd7 {[%clk 0:00:04.1]}
51... Qf1+ {[%clk 0:00:18.7]} 52. Qg2 {[%clk 0:00:05.6]} 52... Qd3 {[%clk
0:00:17.1]} 53. Nc5 {[%clk 0:00:06.3]} 53... Rxc5 {[%clk 0:00:17]} 54. dxc5
{[%clk 0:00:05]} 54... Qxd8 {[%clk 0:00:18]} 55. Qe2 {[%clk 0:00:06.3]} 55...
Qd5 {[%clk 0:00:18.5]} 56. Qf2 {[%clk 0:00:07.3]} 56... e5 {[%clk 0:00:18.6]}
57. Kg2 {[%clk 0:00:07.8]} 57... e4 {[%clk 0:00:19.9]} 58. Kh3 {[%clk
0:00:08.4]} 58... exf3 {[%clk 0:00:19.4]} 59. c6 {[%clk 0:00:09.2]} 59... Qxc6
{[%clk 0:00:20.1]} 60. Qd2 {[%clk 0:00:10.4]} 60... Qe6 {[%clk 0:00:21]} 61. g4
{[%clk 0:00:09.9]} 61... Nh6 {[%clk 0:00:20.2]} 62. Qd4+ {[%clk 0:00:10.4]}
62... Kh7 {[%clk 0:00:21.5]} 63. Kg3 {[%clk 0:00:07.6]} 63... Qxg4+ {[%clk
0:00:22.1]} 64. Qxg4 {[%clk 0:00:08.5]} 64... hxg4 {[%clk 0:00:23.7]} 0-1

[Event "GrandPrix_30.05"]
[Site "Chess.com"]
[Date "2020.05.30"]
[Round "4"]
[White "Azatic"]
[Black "Thor736"]
[Result "1-0"]
[WhiteElo "2398"]
[BlackElo "2101"]
[TimeControl "600+2"]
[EndTime "9:56:11 PDT"]
[Termination "Azatic won on time"]

1. e4 {[%clk 0:10:01.9]} 1... c5 {[%clk 0:10:01]} 2. Nf3 {[%clk 0:10:01.2]} 2...
d6 {[%clk 0:10:00.7]} 3. d4 {[%clk 0:10:01.1]} 3... cxd4 {[%clk 0:10:01.7]} 4.
Nxd4 {[%clk 0:10:03]} 4... Nf6 {[%clk 0:10:03.2]} 5. Nc3 {[%clk 0:10:02.5]} 5...
a6 {[%clk 0:10:04]} 6. Be3 {[%clk 0:09:41.6]} 6... e5 {[%clk 0:10:03.4]} 7. Nb3
{[%clk 0:09:42.4]} 7... Be6 {[%clk 0:10:03.7]} 8. Qd2 {[%clk 0:09:43.4]} 8...
Nbd7 {[%clk 0:10:02.9]} 9. O-O-O {[%clk 0:09:42.9]} 9... Rc8 {[%clk 0:10:03.4]}
10. Kb1 {[%clk 0:09:29.9]} 10... b5 {[%clk 0:09:55.5]} 11. f4 {[%clk 0:09:13.1]}
11... Be7 {[%clk 0:09:19.1]} 12. Bd3 {[%clk 0:08:42.4]} 12... O-O {[%clk
0:09:03]} 13. f5 {[%clk 0:08:34.5]} 13... Bc4 {[%clk 0:09:02.2]} 14. h3 {[%clk
0:07:45.6]} 14... b4 {[%clk 0:06:02.2]} 15. Ne2 {[%clk 0:07:41.7]} 15... Bxd3
{[%clk 0:05:40.6]} 16. Qxd3 {[%clk 0:07:24.8]} 16... Qc7 {[%clk 0:05:25.1]} 17.
g4 {[%clk 0:06:11.5]} 17... Qc4 {[%clk 0:05:11.4]} 18. Ng3 {[%clk 0:06:10.1]}
18... h6 {[%clk 0:04:47.6]} 19. Rhg1 {[%clk 0:05:27.5]} 19... Qxd3 {[%clk
0:04:19]} 20. Rxd3 {[%clk 0:03:01.7]} 20... Rfd8 {[%clk 0:03:41.6]} 21. h4
{[%clk 0:02:10.3]} 21... Nxg4 {[%clk 0:03:28]} 22. Nh5 {[%clk 0:02:07.5]} 22...
Nxe3 {[%clk 0:03:07]} 23. Rxg7+ {[%clk 0:02:05.1]} 23... Kf8 {[%clk 0:02:08.8]}
24. Rxe3 {[%clk 0:02:04.5]} 24... Nf6 {[%clk 0:02:09.7]} 25. Reg3 {[%clk
0:01:46.2]} 25... Ke8 {[%clk 0:02:09.8]} 26. Nxf6+ {[%clk 0:01:36.5]} 26... Bxf6
{[%clk 0:02:09.9]} 27. Rh7 {[%clk 0:00:36.3]} 27... Ke7 {[%clk 0:01:36.3]} 28.
h5 {[%clk 0:00:29.3]} 28... Rg8 {[%clk 0:01:32.9]} 29. Rg6 {[%clk 0:00:29.3]}
29... Bg5 {[%clk 0:00:43.6]} 30. Na5 {[%clk 0:00:23.9]} 30... Kf8 {[%clk
0:00:24.3]} 31. Rxd6 {[%clk 0:00:15.2]} 31... Rd8 {[%clk 0:00:25.4]} 32. Nc4
{[%clk 0:00:08.5]} 32... Rxd6 {[%clk 0:00:14.9]} 33. Nxd6 {[%clk 0:00:10.4]}
33... Rg7 {[%clk 0:00:04.9]} 34. Rxg7 {[%clk 0:00:10.6]} 34... Kxg7 {[%clk
0:00:05.8]} 35. c4 {[%clk 0:00:09.7]} 35... bxc3 {[%clk 0:00:02.1]} 36. bxc3
{[%clk 0:00:11.6]} 36... Be3 {[%clk 0:00:02.9]} 37. Kc2 {[%clk 0:00:11.8]} 37...
Kf6 {[%clk 0:00:03.6]} 38. Kd3 {[%clk 0:00:12.5]} 38... Bc5 {[%clk 0:00:04.7]}
39. Nb7 {[%clk 0:00:13.5]} 39... Be7 {[%clk 0:00:03.9]} 40. Kc4 {[%clk
0:00:13.8]} 40... Kg5 {[%clk 0:00:05]} 41. Kd5 {[%clk 0:00:15]} 41... Kxh5
{[%clk 0:00:05.5]} 42. Kxe5 {[%clk 0:00:15.4]} 42... Kg4 {[%clk 0:00:06.4]} 43.
f6 {[%clk 0:00:16.5]} 43... Ba3 {[%clk 0:00:07.6]} 44. Nd8 {[%clk 0:00:16.6]}
44... h5 {[%clk 0:00:07.6]} 45. Nxf7 {[%clk 0:00:17.5]} 45... h4 {[%clk
0:00:09]} 46. Nh6+ {[%clk 0:00:18.3]} 46... Kf3 {[%clk 0:00:06.4]} 47. Kf5
{[%clk 0:00:17.2]} 47... h3 {[%clk 0:00:06.7]} 48. Ng4 {[%clk 0:00:18.6]} 48...
Bd6 {[%clk 0:00:04.2]} 49. c4 {[%clk 0:00:15.2]} 49... Kg3 {[%clk 0:00:03.8]}
50. c5 {[%clk 0:00:15.3]} 50... Bxc5 {[%clk 0:00:04.8]} 51. e5 {[%clk
0:00:16.6]} 51... Bd4 {[%clk 0:00:04.6]} 52. e6 {[%clk 0:00:17.5]} 52... Bxf6
{[%clk 0:00:05.5]} 53. Nxf6 {[%clk 0:00:17.1]} 53... h2 {[%clk 0:00:06.6]} 54.
Ne4+ {[%clk 0:00:17.9]} 54... Kg2 {[%clk 0:00:05.4]} 55. e7 {[%clk 0:00:19.3]}
55... h1=Q {[%clk 0:00:06.5]} 56. e8=Q {[%clk 0:00:20.8]} 56... Qf1+ {[%clk
0:00:04.1]} 57. Ke5 {[%clk 0:00:14.7]} 57... Qa1+ {[%clk 0:00:03]} 58. Kf4
{[%clk 0:00:15]} 58... Qxa2 {[%clk 0:00:03.6]} 59. Qg6+ {[%clk 0:00:14.7]} 59...
Kf1 {[%clk 0:00:04.1]} 60. Qb6 {[%clk 0:00:08.4]} 1-0

[Event "GrandPrix_30.05"]
[Site "Chess.com"]
[Date "2020.05.30"]
[Round "4"]
[White "Matibar"]
[Black "moro182"]
[Result "1-0"]
[WhiteElo "2625"]
[BlackElo "2502"]
[TimeControl "600+2"]
[EndTime "9:56:15 PDT"]
[Termination "Matibar won by resignation"]

1. e4 {[%clk 0:10:00.7]} 1... e5 {[%clk 0:10:00.1]} 2. Nf3 {[%clk 0:09:47.3]}
2... Nc6 {[%clk 0:10:00.7]} 3. Bb5 {[%clk 0:09:46.1]} 3... a6 {[%clk 0:10:01.4]}
4. Ba4 {[%clk 0:09:46.5]} 4... Nf6 {[%clk 0:10:02.7]} 5. Nc3 {[%clk 0:09:47.9]}
5... b5 {[%clk 0:09:55.6]} 6. Bb3 {[%clk 0:09:48]} 6... Bc5 {[%clk 0:09:57.5]}
7. Nd5 {[%clk 0:09:42.6]} 7... d6 {[%clk 0:09:42.5]} 8. c3 {[%clk 0:09:13]} 8...
Be6 {[%clk 0:07:48.7]} 9. d4 {[%clk 0:08:48.6]} 9... exd4 {[%clk 0:07:49.6]} 10.
cxd4 {[%clk 0:08:49.3]} 10... Bxd5 {[%clk 0:07:50.5]} 11. exd5 {[%clk 0:07:47]}
11... Bb4+ {[%clk 0:07:50.9]} 12. Kf1 {[%clk 0:07:48.1]} 12... Ne7 {[%clk
0:07:20.2]} 13. Bg5 {[%clk 0:07:47.1]} 13... Ng6 {[%clk 0:07:17.9]} 14. Qe2+
{[%clk 0:05:53.8]} 14... Kf8 {[%clk 0:07:16.6]} 15. Rc1 {[%clk 0:05:55.4]} 15...
Ba5 {[%clk 0:06:24.9]} 16. Nh4 {[%clk 0:05:55.5]} 16... h6 {[%clk 0:06:10.9]}
17. Nxg6+ {[%clk 0:05:47.1]} 17... fxg6 {[%clk 0:06:12.8]} 18. Be3 {[%clk
0:05:39.9]} 18... Kg8 {[%clk 0:05:52.9]} 19. Qd3 {[%clk 0:05:21.1]} 19... Kh7
{[%clk 0:05:51]} 20. h4 {[%clk 0:03:47.7]} 20... h5 {[%clk 0:05:50.9]} 21. Bg5
{[%clk 0:03:48.2]} 21... Qd7 {[%clk 0:05:02.8]} 22. Rh3 {[%clk 0:03:29.4]} 22...
Rhf8 {[%clk 0:03:57.1]} 23. Bc2 {[%clk 0:03:16]} 23... Qf7 {[%clk 0:03:55.7]}
24. Rf3 {[%clk 0:03:17.3]} 24... Rae8 {[%clk 0:03:46.8]} 25. Bb1 {[%clk
0:02:42.4]} 25... Re7 {[%clk 0:03:00.4]} 26. a3 {[%clk 0:02:40.8]} 26... Qe8
{[%clk 0:02:27.3]} 27. b4 {[%clk 0:02:34.2]} 27... Bb6 {[%clk 0:02:27.5]} 28.
Rd1 {[%clk 0:01:45.4]} 28... a5 {[%clk 0:02:13.3]} 29. g3 {[%clk 0:01:20.8]}
29... axb4 {[%clk 0:01:58.2]} 30. axb4 {[%clk 0:01:21.6]} 30... Qf7 {[%clk
0:00:48.7]} 31. Qxb5 {[%clk 0:00:50.2]} 31... Ree8 {[%clk 0:00:18.9]} 32. Qd3
{[%clk 0:00:46.7]} 32... Ba7 {[%clk 0:00:12.1]} 33. Re1 {[%clk 0:00:38.5]} 33...
Rxe1+ {[%clk 0:00:09.6]} 34. Kxe1 {[%clk 0:00:40.4]} 34... Bb6 {[%clk
0:00:07.1]} 35. Kf1 {[%clk 0:00:40.1]} 35... Qe8 {[%clk 0:00:06.5]} 36. Kg2
{[%clk 0:00:39.5]} 36... Nd7 {[%clk 0:00:04.5]} 37. Rxf8 {[%clk 0:00:30.8]}
37... Nxf8 {[%clk 0:00:06.4]} 38. Qf3 {[%clk 0:00:30.1]} 38... Kg8 {[%clk
0:00:04.6]} 39. Be3 {[%clk 0:00:31]} 39... Nd7 {[%clk 0:00:05]} 40. g4 {[%clk
0:00:20]} 40... Nf6 {[%clk 0:00:05.9]} 41. g5 {[%clk 0:00:21.4]} 41... Ng4
{[%clk 0:00:06.3]} 42. Qe4 {[%clk 0:00:12.8]} 42... Qxe4+ {[%clk 0:00:07.4]} 43.
Bxe4 {[%clk 0:00:13.6]} 43... Nxe3+ {[%clk 0:00:08.8]} 44. fxe3 {[%clk
0:00:14.8]} 44... Kf7 {[%clk 0:00:10.7]} 45. Kf3 {[%clk 0:00:15.8]} 45... Ba7
{[%clk 0:00:12.1]} 46. Ke2 {[%clk 0:00:16.8]} 46... Bb6 {[%clk 0:00:13.6]} 47.
Kd3 {[%clk 0:00:18.1]} 47... Ba7 {[%clk 0:00:11.4]} 48. Kc4 {[%clk 0:00:17.8]}
48... Bb6 {[%clk 0:00:12.8]} 49. Kb5 {[%clk 0:00:19]} 49... Ba7 {[%clk
0:00:12.2]} 50. Kc6 {[%clk 0:00:20.3]} 50... Bb6 {[%clk 0:00:14.1]} 51. Kd7
{[%clk 0:00:20.8]} 51... Kf8 {[%clk 0:00:14]} 52. Bxg6 {[%clk 0:00:21.7]} 52...
Kg8 {[%clk 0:00:14.6]} 53. Bxh5 {[%clk 0:00:21.6]} 53... Kf8 {[%clk 0:00:15]}
54. Bg6 {[%clk 0:00:22.6]} 54... Kg8 {[%clk 0:00:16.8]} 55. h5 {[%clk
0:00:22.4]} 55... Kf8 {[%clk 0:00:18.1]} 56. Ke6 {[%clk 0:00:21.6]} 56... Kg8
{[%clk 0:00:19.2]} 57. h6 {[%clk 0:00:20.3]} 57... gxh6 {[%clk 0:00:19.6]} 58.
gxh6 {[%clk 0:00:20.3]} 58... Ba7 {[%clk 0:00:21]} 59. Kf6 {[%clk 0:00:18.9]}
59... Bb6 {[%clk 0:00:22.1]} 60. h7+ {[%clk 0:00:20]} 60... Kh8 {[%clk
0:00:22.6]} 61. Bd3 {[%clk 0:00:17.9]} 61... Ba7 {[%clk 0:00:23.2]} 62. Kg6
{[%clk 0:00:18.1]} 62... Bb6 {[%clk 0:00:24.3]} 63. Kf7 {[%clk 0:00:17.6]} 63...
Ba7 {[%clk 0:00:25.2]} 64. Ke7 {[%clk 0:00:18.8]} 64... Kg7 {[%clk 0:00:27.1]}
65. Kd7 {[%clk 0:00:19.6]} 65... Bb6 {[%clk 0:00:28.7]} 66. Kc6 {[%clk
0:00:20.8]} 66... Kh8 {[%clk 0:00:29.4]} 67. Kb5 {[%clk 0:00:22]} 67... Kg7
{[%clk 0:00:30.6]} 68. Kc4 {[%clk 0:00:23.5]} 68... Kh8 {[%clk 0:00:30.9]} 69.
Bf5 {[%clk 0:00:24.8]} 69... Kg7 {[%clk 0:00:31.9]} 70. e4 {[%clk 0:00:26.2]}
70... Ba7 {[%clk 0:00:29.6]} 71. e5 {[%clk 0:00:27.5]} 71... dxe5 {[%clk
0:00:30.9]} 72. dxe5 {[%clk 0:00:29.1]} 72... Be3 {[%clk 0:00:32.4]} 73. d6
{[%clk 0:00:26.9]} 1-0